fUST/lending_fUST_20250305
["ID","MTS","AMOUNT","RATE_DAILY","PERIOD"]
[355421976,1741131036795,-151.0,0.00027397,7]
[355421977,1741131036805,-151.0,0.00027397,7]
[355421978,1741131036815,-151.0,0.00027397,7]
[355421979,1741131036824,-151.0,0.00027397,7]
[355421980,1741131036834,-151.0,0.00027397,7]
[355421981,1741131036844,-151.0,0.00027397,7]
[355421982,1741131036853,-151.0,0.00027397,7]
[355421983,1741131036862,-151.0,0.00027397,7]
[355421984,1741131036871,-151.0,0.00027397,7]
[355421985,1741131036881,-151.0,0.00027397,7]
[355421986,1741131036891,-151.0,0.00027397,7]
[355421987,1741131036900,-243.013614,0.00027397,7]
[355421988,1741131036909,-283.380464,0.00027397,7]
[355421989,1741131036919,-283.380464,0.00027397,7]
[355421990,1741131036928,-283.380464,0.00027397,7]
[355421991,1741131036937,-283.380464,0.00027397,7]
[355421992,1741131036947,-283.380464,0.00027397,7]
[355421993,1741131036956,-283.380464,0.00027397,7]
[355421994,1741131036966,-151.0,0.00027397,7]
[355421995,1741131036977,-234.794907,0.00027397,7]
[355421996,1741131036986,-694.43459,0.00027397,7]
[355421997,1741131036996,-694.43459,0.00027397,7]
[355421998,1741131037006,-694.43459,0.00027397,7]
[355421999,1741131037015,-694.43459,0.00027397,7]
[355422000,1741131037024,-694.43459,0.00027397,7]
[355422001,1741131037034,-694.43459,0.00027397,7]
[355422002,1741131037044,-2351.964359,0.00027397,7]
[355422003,1741131037054,-151.0,0.00027397,7]
[355422004,1741131037064,-2351.964359,0.00027397,7]
[355422005,1741131037074,-151.0,0.00027397,7]
[355422006,1741131037083,-2351.964359,0.00027397,7]
[355422007,1741131037093,-151.0,0.00027397,7]
[355422008,1741131037103,-151.0,0.00027397,7]
[355422009,1741131037112,-151.0,0.00027397,7]
[355422010,1741131037121,-151.0,0.00027397,7]
[355422011,1741131037131,-151.0,0.00027397,7]
[355422012,1741131037140,-151.0,0.00027397,7]
[355422013,1741131037149,-151.0,0.00027397,7]
[355422014,1741131037159,-658.579905,0.00027397,7]
[355422015,1741131037169,-658.579905,0.00027397,7]
[355422016,1741131037178,-658.579905,0.00027397,7]
[355422017,1741131037188,-658.579905,0.00027397,7]
[355422018,1741131037197,-658.579905,0.00027397,7]
[355422019,1741131037207,-658.579905,0.00027397,7]
[355422020,1741131037217,-151.0,0.00027397,7]
[355422021,1741131037227,-151.0,0.00027397,7]
[355422022,1741131037236,-151.0,0.00027397,7]
[355422023,1741131037245,-183.179677,0.00027397,7]
[355422024,1741131037255,-183.179677,0.00027397,7]
[355422025,1741131037264,-183.179677,0.00027397,7]
[355422026,1741131037274,-183.179677,0.00027397,7]
[355422027,1741131037283,-183.179677,0.00027397,7]
[355422028,1741131037292,-183.179677,0.00027397,7]
[355422029,1741131037302,-151.0,0.00027397,7]
[355422030,1741131037311,-151.0,0.00027397,7]
[355422031,1741131037320,-151.0,0.00027397,7]
[355422032,1741131037330,-500.0,0.00027397,2]
[355422033,1741131037340,-253.9506449,0.00027397,120]
[355422034,1741131037349,-403.24,0.000274,7]
[355422035,1741131037358,-151.0,0.0002748,7]
[355422036,1741131037368,-151.0,0.0002748,7]
[355422037,1741131037377,-151.0,0.0002748,7]
[355422038,1741131037387,-283.380464,0.0002748,7]
[355422039,1741131037397,-283.380464,0.0002748,7]
[355422040,1741131037406,-694.43459,0.0002748,7]
[355422041,1741131037415,-694.43459,0.0002748,7]
[355422042,1741131037424,-2351.964359,0.0002748,7]
[355422044,1741131037434,-2351.964359,0.0002748,7]
[355422045,1741131037444,-151.0,0.0002748,7]
[355422046,1741131037457,-151.0,0.0002748,7]
[355422047,1741131037467,-151.0,0.0002748,7]
[355422048,1741131037476,-658.579905,0.0002748,7]
[355422049,1741131037486,-658.579905,0.0002748,7]
[355422050,1741131037496,-151.0,0.0002748,7]
[355422051,1741131037506,-183.179677,0.0002748,7]
[355422052,1741131037515,-183.179677,0.0002748,7]
[355422053,1741131037525,-151.0,0.0002749,7]
[355422054,1741131037534,-151.0,0.0002749,7]
[355422055,1741131037543,-151.0,0.0002749,7]
[355422056,1741131037552,-233.151043,0.0002749,7]
[355422057,1741131037562,-233.151043,0.0002749,7]
[355422058,1741131037571,-186.994524,0.0002749,7]
[355422059,1741131037580,-186.994524,0.0002749,7]
[355422060,1741131037590,-151.0,0.0002749,7]
[355422062,1741131037599,-151.0,0.0002749,7]
[355422063,1741131037609,-1735.39103765,0.0002749,2]
[355422064,1741131037620,-151.0,0.000275,7]
[355422065,1741131037629,-241.427172,0.000275,7]
[355422066,1741131037639,-241.427172,0.000275,7]
[355422067,1741131037648,-212.854306,0.000275,7]
[355422068,1741131037657,-212.854306,0.000275,7]
[355422069,1741131037667,-239.435703,0.000275,7]
[355422070,1741131037676,-301.93332,0.000275,7]
[355422071,1741131037686,-301.93332,0.000275,7]
[355422072,1741131037695,-397.551542,0.000275,7]
[355422073,1741131037704,-257.424856,0.000275,7]
[355422074,1741131037714,-257.424856,0.000275,7]
[355422075,1741131037724,-1063.044747,0.000275,7]
[355422076,1741131037733,-582.640656,0.000275,7]
[355422077,1741131037742,-582.640656,0.000275,7]
[355422078,1741131037752,-151.0,0.000275,7]
[355422079,1741131037762,-282.583281,0.000275,7]
[355422080,1741131037771,-151.0,0.000275,7]
[355422081,1741131037782,-333.436763,0.000275,7]
[355422082,1741131037791,-151.0,0.000275,7]
[355422084,1741131037800,-329.724719,0.000275,7]
[355422086,1741131037810,-333.436763,0.000275,7]
[355422088,1741131037819,-151.0,0.000275,7]
[355422090,1741131037829,-390.409575,0.000275,7]
[355422092,1741131037838,-329.724719,0.000275,7]
[355422094,1741131037848,-390.409575,0.000275,7]
[355422096,1741131037857,-151.0,0.000275,7]
[355422098,1741131037867,-39742.9394509,0.000275,2]
[355422100,1741131037876,-266.481462,0.000275,7]
[355422102,1741131037886,-200.58,0.00027639,2]
[355422104,1741131037895,-1165.7948988,0.0002778,2]
[355422106,1741131037905,-1361.11791899,0.0002799,2]
[355422108,1741131037914,-1171.88831493,0.0002799,2]
[355422110,1741131037924,-197.985848,0.0002799,7]
[355422112,1741131037934,-197.985848,0.0002799,7]
[355422114,1741131037943,-170.195033,0.0002799,7]
[355422115,1741131037962,-170.195033,0.0002799,7]
[355422116,1741131037974,-500.0,0.00028072,5]
[355422118,1741131037985,-1735.39103765,0.00028373,2]
[355422120,1741131037995,-186.994524,0.00028383,7]
[355422122,1741131038004,-186.994524,0.00028383,7]
[355422124,1741131038014,-151.0,0.00028383,7]
[355422127,1741131038025,-296.629058,0.00028383,7]
[355422129,1741131038035,-151.0,0.00028383,7]
[355422131,1741131038045,-151.0,0.00028383,7]
[355422133,1741131038055,-151.0,0.00028383,7]
[355422135,1741131038066,-283.380464,0.00028383,7]
[355422137,1741131038076,-283.380464,0.00028383,7]
[355422139,1741131038086,-694.43459,0.00028383,7]
[355422141,1741131038096,-694.43459,0.00028383,7]
[355422143,1741131038106,-2351.964359,0.00028383,7]
[355422145,1741131038116,-2351.964359,0.00028383,7]
[355422147,1741131038126,-4402.40317783,0.0002843,2]
[355422149,1741131038136,-151.0,0.0002843,7]
[355422151,1741131038146,-151.0,0.0002843,7]
[355422153,1741131038156,-658.579905,0.0002843,7]
[355422155,1741131038165,-658.579905,0.0002843,7]
[355422157,1741131038175,-222.305404,0.0002843,7]
[355422159,1741131038184,-183.179677,0.0002843,7]
[355422160,1741131038194,-183.179677,0.0002843,7]
[355422161,1741131038204,-1335.3567193,0.00028809,4]
[355422162,1741131038215,-1152.0,0.00028901,2]
[355422163,1741131038224,-866.68617144,0.00029,2]
[355422164,1741131038234,-200.58,0.00029009,2]
[355422165,1741131038243,-151.0,0.000297,7]
[355422166,1741131038253,-151.0,0.000297,7]
[355422167,1741131038263,-233.151043,0.000297,7]
[355422168,1741131038274,-233.151043,0.000297,7]
[355422169,1741131038286,-2000.0,0.00029961,4]
[355422170,1741131038295,-500.0,0.0003,60]
[355422171,1741131038305,-500.3,0.0003,2]
[355422172,1741131038314,-155.0,0.0003,2]
[355422173,1741131038324,-403.24,0.000303,7]
[355422174,1741131038334,-229.935949,0.00030352,7]
[355422175,1741131038344,-229.935949,0.00030352,7]
[355422176,1741131038354,-1000.0,0.00030352,5]
[355422177,1741131038364,-1000.0,0.00030352,5]
[355422178,1741131038373,-1000.0,0.00030352,5]
[355422179,1741131038383,-1000.0,0.00030352,5]
[355422180,1741131038393,-1000.0,0.00030352,5]
[355422181,1741131038403,-578.12344846,0.00030352,5]
[355422182,1741131038412,-1000.52565708,0.00030352,5]
[355422183,1741131038422,-1000.0,0.00030352,5]
[355422184,1741131038432,-1000.0,0.00030352,5]
[355422185,1741131038441,-1000.0,0.00030352,5]
[355422186,1741131038456,-200.58,0.00030379,2]
[355422187,1741131038466,-299.51278474,0.0003099,2]
[355422188,1741131038476,-2493.75272788,0.00031143,2]
[355422189,1741131038486,-1613.0,0.0003145,2]
[355422190,1741131038498,-200.58,0.00031749,2]
[355422191,1741131038507,-4402.40317783,0.00032076,2]
[355422192,1741131038517,-296.88634,0.000323,120]
[355422193,1741131038528,-1735.39103765,0.00032842,2]
[355422194,1741131038537,-301.93332,0.00032852,7]
[355422195,1741131038547,-397.551542,0.00032852,7]
[355422196,1741131038557,-301.93332,0.00032852,7]
[355422197,1741131038567,-397.551542,0.00032852,7]
[355422198,1741131038581,-257.424856,0.00032852,7]
[355422199,1741131038590,-257.424856,0.00032852,7]
[355422200,1741131038600,-1063.044747,0.00032852,7]
[355422201,1741131038611,-582.640656,0.00032852,7]
[355422202,1741131038621,-582.640656,0.00032852,7]
[355422203,1741131038631,-151.0,0.00032852,7]
[355422204,1741131038641,-151.0,0.00032852,7]
[355422205,1741131038651,-333.436763,0.00032852,7]
[355422206,1741131038661,-151.0,0.00032852,7]
[355422207,1741131038671,-329.724719,0.00032852,7]
[355422208,1741131038681,-333.436763,0.00032852,7]
[355422209,1741131038691,-151.0,0.00032852,7]
[355422210,1741131038700,-390.409575,0.00032852,7]
[355422211,1741131038710,-329.724719,0.00032852,7]
[355422212,1741131038719,-390.409575,0.00032852,7]
[355422213,1741131038732,-151.0,0.00032852,7]
[355422214,1741131038742,-1000.0,0.00032852,5]
[355422215,1741131038751,-554.4261493,0.00032852,5]
[355422216,1741131038761,-1000.0,0.00032852,5]
[355422217,1741131038946,-1000.0,0.00032852,5]
[355422218,1741131038956,-899.73382082,0.00032852,5]
[355422219,1741131038965,-1000.0,0.00032852,5]
[355422220,1741131038975,-1000.0,0.00032852,5]
[355422221,1741131038984,-1000.0,0.00032852,5]
[355422222,1741131038994,-502.39876251,0.00032852,5]
[355422223,1741131039003,-1001.92217989,0.00032852,5]
[355422224,1741131039012,-500.0,0.00032852,5]
[355422225,1741131039022,-507.2184433,0.00032852,5]
[355422226,1741131039031,-561.94957559,0.00032852,5]
[355422227,1741131039040,-501.29059015,0.00032852,5]
[355422228,1741131039050,-1000.0,0.00032852,5]
[355422229,1741131039059,-1000.0,0.00032852,5]
[355422230,1741131039068,-1000.0,0.00032852,5]
[355422231,1741131039077,-1000.0,0.00032852,5]
[355422232,1741131039087,-500.0,0.00032852,5]
[355422233,1741131039096,-1000.0,0.00032852,5]
[355422234,1741131039106,-608.72724872,0.00032852,5]
[355422235,1741131039115,-1000.0,0.00032852,5]
[355422236,1741131039125,-1000.0,0.00032852,5]
[355422237,1741131039135,-1002.32488959,0.00032852,5]
[355422238,1741131039144,-1000.0,0.00032876,120]
[355422239,1741131039153,-151.0,0.00032877,14]
[355422240,1741131039163,-151.0,0.00032877,14]
[355422241,1741131039172,-151.0,0.00032877,14]
[355422242,1741131039183,-227.215652,0.00032877,14]
[355422243,1741131039193,-198.156616,0.00032877,14]
[355422244,1741131039203,-198.156616,0.00032877,14]
[355422245,1741131039213,-198.156616,0.00032877,14]
[355422246,1741131039223,-198.156616,0.00032877,14]
[355422247,1741131039232,-198.156616,0.00032877,14]
[355422248,1741131039241,-198.156616,0.00032877,14]
[355422249,1741131039251,-198.156616,0.00032877,14]
[355422250,1741131039260,-198.156616,0.00032877,14]
[355422251,1741131039270,-198.156616,0.00032877,14]
[355422252,1741131039279,-198.156616,0.00032877,14]
[355422253,1741131039288,-198.156616,0.00032877,14]
[355422254,1741131039298,-198.156616,0.00032877,14]
[355422255,1741131039307,-198.156616,0.00032877,14]
[355422256,1741131039316,-198.156616,0.00032877,14]
[355422257,1741131039327,-241.427172,0.00032877,14]
[355422258,1741131039336,-241.427172,0.00032877,14]
[355422259,1741131039345,-212.854306,0.00032877,14]
[355422260,1741131039355,-212.854306,0.00032877,14]
[355422261,1741131039364,-170.195033,0.00032877,14]
[355422262,1741131039374,-170.195033,0.00032877,14]
[355422263,1741131039384,-283.380464,0.00032877,14]
[355422264,1741131039393,-283.380464,0.00032877,14]
[355422265,1741131039403,-694.43459,0.00032877,14]
[355422266,1741131039412,-694.43459,0.00032877,14]
[355422267,1741131039421,-2351.964359,0.00032877,14]
[355422268,1741131039430,-2351.964359,0.00032877,14]
[355422269,1741131039440,-151.0,0.00032877,14]
[355422270,1741131039452,-238.232426,0.00032877,14]
[355422271,1741131039462,-658.579905,0.00032877,14]
[355422272,1741131039471,-658.579905,0.00032877,14]
[355422273,1741131039482,-183.179677,0.00032877,14]
[355422274,1741131039491,-183.179677,0.00032877,14]
[355422275,1741131039501,-151.0,0.00032878,2]
[355422276,1741131039511,-1735.39103765,0.0003289,2]
[355422277,1741131039523,-510.15,0.000329,30]
[355422278,1741131039533,-1203.19,0.000329,30]
[355422279,1741131039543,-18149.97,0.000329,30]
[355422280,1741131039552,-896.42,0.000329,30]
[355422281,1741131039562,-184.26,0.000329,30]
[355422282,1741131039572,-151.0,0.000329,14]
[355422283,1741131039582,-197.985848,0.000329,14]
[355422284,1741131039592,-197.985848,0.000329,14]
[355422285,1741131039601,-151.0,0.000329,14]
[355422286,1741131039611,-151.0,0.000329,14]
[355422287,1741131039621,-233.151043,0.000329,14]
[355422288,1741131039631,-233.151043,0.000329,14]
[355422289,1741131039640,-186.994524,0.000329,14]
[355422290,1741131039650,-186.994524,0.000329,14]
[355422291,1741131039659,-151.0,0.000329,14]
[355422292,1741131039668,-151.0,0.000329,14]
[355422293,1741131039678,-151.0,0.000329,14]
[355422294,1741131039688,-194.856854,0.000329,14]
[355422295,1741131039698,-1000.0,0.00032904,120]
[355422296,1741131039707,-155.0,0.00033,2]
[355422297,1741131039717,-155.0,0.00033,2]
[355422298,1741131039728,-200.58,0.00033118,2]
[355422299,1741131039738,-201.6903966,0.0003354,5]
[355422300,1741131039748,-150.0,0.0003354,3]
[355422302,1741131039758,-1063.044747,0.00033551,14]
[355422303,1741131039767,-162.113812,0.00033551,14]
[355422304,1741131039778,-500.0,0.00033551,5]
[355422305,1741131039789,-1735.39103765,0.0003399,2]
[355422306,1741131039799,-209.05,0.00033999,2]
[355422307,1741131039809,-209.05,0.00033999,2]
[355422308,1741131039819,-209.05,0.00033999,2]
[355422309,1741131039829,-209.05,0.00033999,2]
[355422310,1741131039839,-209.05,0.00033999,2]
[355422311,1741131039848,-209.05,0.00033999,2]
[355422312,1741131039858,-209.05,0.00033999,2]
[355422313,1741131039868,-209.05,0.00033999,2]
[355422314,1741131039878,-209.05,0.00033999,2]
[355422315,1741131039888,-21029.86727547,0.00034,2]
[355422316,1741131039898,-229.935949,0.00034,14]
[355422317,1741131039907,-229.935949,0.00034,14]
[355422318,1741131039916,-241.427172,0.00034,14]
[355422319,1741131039926,-241.427172,0.00034,14]
[355422320,1741131039935,-212.854306,0.00034,14]
[355422321,1741131039945,-212.854306,0.00034,14]
[355422322,1741131039955,-198.156616,0.00034,14]
[355422323,1741131039963,-198.156616,0.00034,14]
[355422324,1741131039971,-301.93332,0.00034,14]
[355422325,1741131039984,-397.551542,0.00034,14]
[355422326,1741131039994,-301.93332,0.00034,14]
[355422327,1741131040004,-397.551542,0.00034,14]
[355422328,1741131040013,-257.424856,0.00034,14]
[355422329,1741131040023,-257.424856,0.00034,14]
[355422330,1741131040032,-582.640656,0.00034,14]
[355422331,1741131040042,-582.640656,0.00034,14]
[355422332,1741131040052,-151.0,0.00034,14]
[355422333,1741131040062,-333.436763,0.00034,14]
[355422334,1741131040072,-151.0,0.00034,14]
[355422335,1741131040081,-329.724719,0.00034,14]
[355422336,1741131040091,-151.0,0.00034,14]
[355422337,1741131040101,-333.436763,0.00034,14]
[355422338,1741131040110,-390.409575,0.00034,14]
[355422339,1741131040119,-170.195033,0.00034,14]
[355422340,1741131040129,-329.724719,0.00034,14]
[355422341,1741131040139,-390.409575,0.00034,14]
[355422342,1741131040148,-170.195033,0.00034,14]
[355422343,1741131040158,-276.234244,0.00034,14]
[355422344,1741131040167,-283.380464,0.00034,14]
[355422345,1741131040176,-283.38047,0.00034,14]
[355422346,1741131040186,-694.43459,0.00034,14]
[355422347,1741131040195,-694.434589,0.00034,14]
[355422348,1741131040205,-2351.964359,0.00034,14]
[355422349,1741131040214,-2351.96436053,0.00034,14]
[355422350,1741131040224,-151.0,0.00034,14]
[355422351,1741131040235,-658.579905,0.00034,14]
[355422352,1741131040244,-658.579905,0.00034,14]
[355422353,1741131040254,-183.179677,0.00034,14]
[355422354,1741131040263,-183.179681,0.00034,14]
[355422355,1741131040273,-1335.3567193,0.00034027,4]
[355422356,1741131040282,-250.0,0.00034088,3]
[355422357,1741131040292,-2258.0,0.00034225,2]
[355422358,1741131040301,-200.58,0.00034488,2]
[355422359,1741131040311,-350.0,0.00034636,3]
[355422360,1741131040320,-200.769786,0.00034938,2]
[355422361,1741131040330,-20072.48782765,0.00035,2]
[355422362,1741131040339,-403.24,0.00035,7]
[355422363,1741131040348,-151.0,0.00035,14]
[355422364,1741131040358,-233.151043,0.00035,14]
[355422366,1741131040367,-233.151043,0.00035,14]
[355422367,1741131040376,-186.994524,0.00035,14]
[355422368,1741131040385,-186.994524,0.00035,14]
[355422369,1741131040395,-151.0,0.00035,14]
[355422370,1741131040404,-1063.044747,0.00035,14]
[355422371,1741131040414,-151.0,0.00035,14]
[355422372,1741131040423,-151.0,0.00035,14]
[355422373,1741131040432,-2493.75272788,0.00035019,2]
[355422374,1741131040442,-300.0,0.00035184,3]
[355422375,1741131040454,-4402.40317783,0.00035723,2]
[355422376,1741131040463,-200.58,0.00035858,2]
[355422377,1741131040472,-500.0,0.0003589,2]
[355422378,1741131040484,-243.0,0.0003589,2]
[355422379,1741131040495,-243.0,0.00036,2]
[355422380,1741131040504,-154.38,0.00036,31]
[355422381,1741131040514,-154.38,0.00036,31]
[355422382,1741131040524,-182.0,0.00036,2]
[355422383,1741131040534,-155.0,0.00036,2]
[355422384,1741131040544,-155.0,0.00036,2]
[355422385,1741131040553,-151.0,0.000362,14]
[355422386,1741131040563,-658.579905,0.000362,14]
[355422387,1741131040572,-658.579913,0.000362,14]
[355422388,1741131040582,-2359.32321521,0.000362,98]
[355422389,1741131040591,-2359.32321517,0.000362,98]
[355422390,1741131040600,-2359.32321517,0.000362,98]
[355422391,1741131040610,-1955.0,0.00036382,2]
[355422392,1741131040620,-539.0,0.00036382,2]
[355422393,1741131040629,-2276.0,0.00036382,2]
[355422394,1741131040640,-356.0733927,0.00036493,30]
[355422395,1741131040650,-710.4630965,0.00037068,30]
[355422396,1741131040659,-356.0733927,0.00037068,30]
[355422397,1741131040668,-1735.39103765,0.00037227,3]
[355422398,1741131040678,-200.58,0.00037228,2]
[355422399,1741131040688,-160.0,0.00037237,2]
[355422400,1741131040697,-160.0,0.00037237,2]
[355422401,1741131040707,-160.0,0.00037237,2]
[355422402,1741131040716,-170.195033,0.00037328,14]
[355422403,1741131040728,-170.195033,0.00037328,14]
[355422404,1741131040737,-243.0,0.00037397,2]
[355422405,1741131040747,-183.0,0.00037397,2]
[355422406,1741131040756,-356.0733927,0.00037452,30]
[355422407,1741131040765,-500.0,0.00038,5]
[355422408,1741131040774,-1685.14410247,0.00038,120]
[355422409,1741131040784,-197.985848,0.00038356,14]
[355422410,1741131040805,-197.985848,0.00038356,14]
[355422411,1741131040814,-301.93332,0.00038356,14]
[355422412,1741131040823,-397.551542,0.00038356,14]
[355422413,1741131040832,-301.93332,0.00038356,14]
[355422414,1741131040841,-397.551542,0.00038356,14]
[355422415,1741131040850,-582.640656,0.00038356,14]
[355422416,1741131040858,-582.640656,0.00038356,14]
[355422417,1741131040866,-151.0,0.00038356,14]
[355422418,1741131040875,-333.436763,0.00038356,14]
[355422419,1741131041045,-151.0,0.00038356,14]
[355422420,1741131041054,-329.724719,0.00038356,14]
[355422421,1741131041064,-333.436763,0.00038356,14]
[355422422,1741131041073,-329.724719,0.00038356,14]
[355422423,1741131041083,-999.0,0.00038356,120]
[355422424,1741131041093,-202.182514,0.00038395,14]
[355422425,1741131041103,-712.1467854,0.00038411,30]
[355422426,1741131041112,-241.427172,0.00038519,14]
[355422427,1741131041122,-241.427172,0.00038519,14]
[355422428,1741131041131,-212.854306,0.00038519,14]
[355422429,1741131041141,-212.854306,0.00038519,14]
[355422430,1741131041150,-200.58,0.00038598,2]
[355422431,1741131041159,-233.477,0.00038599,2]
[355422432,1741131041168,-403.24,0.000386,7]
[355422433,1741131041177,-153.0,0.0003863,30]
[355422434,1741131041187,-363.9325177,0.0003863,30]
[355422435,1741131041196,-355.0014711,0.00038795,30]
[355422436,1741131041205,-2493.75272788,0.00038895,2]
[355422437,1741131041214,-999.0,0.00038904,120]
[355422438,1741131041224,-155.0,0.00039,2]
[355422439,1741131041235,-154.38,0.000392,31]
[355422440,1741131041244,-154.38,0.000392,31]
[355422441,1741131041254,-154.38,0.000392,31]
[355422442,1741131041263,-154.38,0.000392,31]
[355422443,1741131041272,-198.815,0.00039219,54]
[355422444,1741131041281,-243.0,0.00039267,14]
[355422445,1741131041291,-4402.40317783,0.0003937,2]
[355422446,1741131041300,-198.156616,0.0003937,14]
[355422447,1741131041309,-198.156616,0.0003937,14]
[355422448,1741131041319,-257.424856,0.0003937,14]
[355422449,1741131041328,-257.424856,0.0003937,14]
[355422450,1741131041338,-151.0,0.0003937,14]
[355422451,1741131041347,-390.409575,0.0003937,14]
[355422452,1741131041357,-390.409575,0.0003937,14]
[355422453,1741131041366,-1954.0,0.00039382,2]
[355422454,1741131041375,-539.0,0.00039382,2]
[355422455,1741131041385,-2276.0,0.00039382,2]
[355422456,1741131041395,-999.0,0.00039452,120]
[355422457,1741131041404,-184.26,0.000395,30]
[355422458,1741131041414,-500.0,0.000396,10]
[355422459,1741131041423,-500.0,0.000396,10]
[355422460,1741131041433,-501.84792333,0.000396,10]
[355422461,1741131041444,-500.0,0.000396,10]
[355422462,1741131041454,-500.0,0.000396,10]
[355422463,1741131041464,-500.0,0.000396,10]
[355422464,1741131041473,-500.0,0.000396,10]
[355422465,1741131041484,-520.17096524,0.000396,10]
[355422466,1741131041493,-520.17096524,0.000396,10]
[355422467,1741131041503,-459.65806952,0.000396,10]
[355422468,1741131041512,-151.0,0.00039623,14]
[355422469,1741131041521,-186.994524,0.00039753,14]
[355422470,1741131041531,-186.994527,0.00039753,14]
[355422471,1741131041541,-151.0,0.00039753,14]
[355422472,1741131041550,-356.0733927,0.00039753,30]
[355422473,1741131041560,-200.58,0.00039968,2]
[355422474,1741131041569,-2000.0,0.0003998,4]
[355422475,1741131041578,-1735.39103765,0.0003999,3]
[355422476,1741131041587,-1203.19,0.0004,30]
[355422477,1741131041597,-18149.97,0.0004,30]
[355422478,1741131041606,-896.42,0.0004,30]
[355422479,1741131041616,-343.657,0.0004,60]
[355422480,1741131041627,-1855.27392099,0.0004,2]
[355422481,1741131041637,-20000.0,0.0004,30]
[355422482,1741131041646,-229.935949,0.0004,14]
[355422483,1741131041655,-229.935949,0.0004,14]
[355422484,1741131041664,-197.985848,0.0004,14]
[355422485,1741131041673,-197.985848,0.0004,14]
[355422486,1741131041683,-241.427172,0.0004,14]
[355422487,1741131041692,-241.427172,0.0004,14]
[355422488,1741131041701,-212.854306,0.0004,14]
[355422489,1741131041710,-212.854306,0.0004,14]
[355422490,1741131041719,-151.0,0.0004,14]
[355422491,1741131041728,-233.151043,0.0004,14]
[355422492,1741131041738,-233.151043,0.0004,14]
[355422493,1741131041747,-198.156616,0.0004,14]
[355422494,1741131041756,-198.156618,0.0004,14]
[355422495,1741131041766,-301.93332,0.0004,14]
[355422496,1741131041775,-397.551542,0.0004,14]
[355422497,1741131041785,-301.93332,0.0004,14]
[355422498,1741131041795,-397.551542,0.0004,14]
[355422499,1741131041804,-257.424856,0.0004,14]
[355422500,1741131041814,-257.424852,0.0004,14]
[355422501,1741131041827,-1063.044747,0.0004,14]
[355422502,1741131041837,-582.640656,0.0004,14]
[355422503,1741131041847,-582.64065,0.0004,14]
[355422504,1741131041856,-151.0,0.0004,14]
[355422505,1741131041866,-333.436763,0.0004,14]
[355422506,1741131041875,-151.0,0.0004,14]
[355422507,1741131041885,-329.724719,0.0004,14]
[355422508,1741131041895,-151.0,0.0004,14]
[355422509,1741131041905,-333.436755,0.0004,14]
[355422510,1741131041915,-390.409575,0.0004,14]
[355422511,1741131041924,-170.195033,0.0004,14]
[355422512,1741131041934,-329.724719,0.0004,14]
[355422513,1741131041944,-170.195033,0.0004,14]
[355422514,1741131041953,-390.409571,0.0004,14]
[355422515,1741131041963,-151.0,0.0004,14]
[355422516,1741131041972,-999.0,0.0004,120]
[355422517,1741131041985,-1335.3567193,0.0004019,4]